[Event "Late-Titled-Tuesday-Blitz-April-30-2024"]
[Site "Chess.com"]
[Date "2024.04.30"]
[Round "9"]
[White "SVijayalakshmi"]
[Black "IMRosen"]
[Result "1-0"]
[WhiteElo "2581"]
[BlackElo "2668"]
[TimeControl "180+1"]
[EndTime "15:43:55 PDT"]
[Termination "SVijayalakshmi won by checkmate"]

1. d4 {[%clk 0:03:00.9]} 1... d5 {[%clk 0:02:59.5]} 2. c4 {[%clk 0:02:57.4]}
2... e6 {[%clk 0:02:59.8]} 3. Nc3 {[%clk 0:02:57.6]} 3... Nf6 {[%clk 0:03:00.4]}
4. cxd5 {[%clk 0:02:58]} 4... exd5 {[%clk 0:03:00.6]} 5. Bg5 {[%clk 0:02:58]}
5... c6 {[%clk 0:03:01.3]} 6. Nf3 {[%clk 0:02:58.2]} 6... Bd6 {[%clk 0:02:59.9]}
7. e3 {[%clk 0:02:58.2]} 7... h6 {[%clk 0:03:00.5]} 8. Bh4 {[%clk 0:02:57.5]}
8... O-O {[%clk 0:03:00.3]} 9. Bd3 {[%clk 0:02:57]} 9... Re8 {[%clk 0:02:59.4]}
10. Rc1 {[%clk 0:02:56.7]} 10... Bg4 {[%clk 0:02:53.1]} 11. h3 {[%clk
0:02:54.4]} 11... Be6 {[%clk 0:02:44.3]} 12. O-O {[%clk 0:02:53]} 12... Nbd7
{[%clk 0:02:41.5]} 13. Bb1 {[%clk 0:02:52.8]} 13... Qb8 {[%clk 0:02:32.9]} 14.
Qd3 {[%clk 0:02:51.3]} 14... g5 {[%clk 0:02:27]} 15. Bxg5 {[%clk 0:02:41.9]}
15... hxg5 {[%clk 0:02:26.9]} 16. Nxg5 {[%clk 0:02:42.6]} 16... Kg7 {[%clk
0:02:02]} 17. f4 {[%clk 0:02:40.5]} 17... Nf8 {[%clk 0:02:02.5]} 18. Rf3 {[%clk
0:02:33.4]} 18... Nh5 {[%clk 0:01:25.7]} 19. Rcf1 {[%clk 0:02:27.3]} 19... Bd7
{[%clk 0:01:10.4]} 20. Ne2 {[%clk 0:02:21.1]} 20... f6 {[%clk 0:01:03.4]} 21.
Nh7 {[%clk 0:02:00.1]} 21... f5 {[%clk 0:00:50.9]} 22. Ng5 {[%clk 0:01:58.4]}
22... Qc8 {[%clk 0:00:33.3]} 23. Ng3 {[%clk 0:01:56.5]} 23... Nf6 {[%clk
0:00:32.1]} 24. Nxf5+ {[%clk 0:01:40.5]} 24... Bxf5 {[%clk 0:00:32.2]} 25. Qxf5
{[%clk 0:01:41.2]} 25... Qxf5 {[%clk 0:00:32.8]} 26. Bxf5 {[%clk 0:01:41.7]}
26... Ne4 {[%clk 0:00:31.3]} 27. Nxe4 {[%clk 0:01:29]} 27... dxe4 {[%clk
0:00:31.9]} 28. R3f2 {[%clk 0:01:24.4]} 28... Kf6 {[%clk 0:00:28.7]} 29. g4
{[%clk 0:01:24.2]} 29... Ng6 {[%clk 0:00:26.8]} 30. Bxg6 {[%clk 0:01:21.5]}
30... Kxg6 {[%clk 0:00:27.7]} 31. h4 {[%clk 0:01:21.9]} 31... c5 {[%clk
0:00:26.3]} 32. f5+ {[%clk 0:01:21.5]} 32... Kf7 {[%clk 0:00:25]} 33. Kg2 {[%clk
0:01:16.9]} 33... Rh8 {[%clk 0:00:23.7]} 34. Kh3 {[%clk 0:01:16]} 34... Rag8
{[%clk 0:00:23.8]} 35. dxc5 {[%clk 0:01:12.6]} 35... Bxc5 {[%clk 0:00:23.9]} 36.
Rc2 {[%clk 0:01:08.7]} 36... b6 {[%clk 0:00:20.5]} 37. b4 {[%clk 0:01:06.6]}
37... Bd6 {[%clk 0:00:20.5]} 38. Rc6 {[%clk 0:01:04.1]} 38... Be7 {[%clk
0:00:16.8]} 39. Rc7 {[%clk 0:01:02.2]} 39... Rxh4+ {[%clk 0:00:16.4]} 40. Kg3
{[%clk 0:01:02.3]} 40... Rgxg4+ {[%clk 0:00:13.6]} 41. Kf2 {[%clk 0:01:02.6]}
41... Rh2+ {[%clk 0:00:13.8]} 42. Ke1 {[%clk 0:01:02.8]} 42... Kf6 {[%clk
0:00:10.1]} 43. Rc6+ {[%clk 0:01:02.1]} 43... Kf7 {[%clk 0:00:10]} 44. Rc7
{[%clk 0:01:02.5]} 44... Ke8 {[%clk 0:00:08.7]} 45. f6 {[%clk 0:00:58.8]} 45...
Bxb4+ {[%clk 0:00:08.8]} 46. Kd1 {[%clk 0:00:59.2]} 46... Rgg2 {[%clk
0:00:03.4]} 47. f7+ {[%clk 0:00:54.1]} 47... Kd8 {[%clk 0:00:03.8]} 48. Rxa7
{[%clk 0:00:52.6]} 48... Rd2+ {[%clk 0:00:04.2]} 49. Kc1 {[%clk 0:00:53]} 49...
Rc2+ {[%clk 0:00:04.8]} 50. Kb1 {[%clk 0:00:51.3]} 50... Rxa2 {[%clk 0:00:05.3]}
51. f8=Q+ {[%clk 0:00:50.7]} 51... Bxf8 {[%clk 0:00:04.8]} 52. Rxf8# {[%clk
0:00:51.2]} 1-0

[Event "Late-Titled-Tuesday-Blitz-April-30-2024"]
[Site "Chess.com"]
[Date "2024.04.30"]
[Round "9"]
[White "Charodej1"]
[Black "PawnEatingZombie"]
[Result "1-0"]
[WhiteElo "2416"]
[BlackElo "2213"]
[TimeControl "180+1"]
[EndTime "15:43:57 PDT"]
[Termination "Charodej1 won on time"]

1. b4 {[%clk 0:02:52.1]} 1... d5 {[%clk 0:02:53.5]} 2. Bb2 {[%clk 0:02:50.7]}
2... Bf5 {[%clk 0:02:47.4]} 3. Nf3 {[%clk 0:02:49.3]} 3... e6 {[%clk 0:02:47.6]}
4. a3 {[%clk 0:02:49]} 4... a5 {[%clk 0:02:46.8]} 5. b5 {[%clk 0:02:48.2]} 5...
a4 {[%clk 0:02:47.2]} 6. e3 {[%clk 0:02:46]} 6... Nf6 {[%clk 0:02:47.1]} 7. Be2
{[%clk 0:02:45.4]} 7... Bd6 {[%clk 0:02:44.7]} 8. O-O {[%clk 0:02:44.4]} 8...
Nbd7 {[%clk 0:02:44.8]} 9. Nc3 {[%clk 0:02:39.5]} 9... c6 {[%clk 0:02:42.3]} 10.
Nd4 {[%clk 0:02:38]} 10... Qb6 {[%clk 0:02:27.9]} 11. Nxf5 {[%clk 0:02:34.9]}
11... exf5 {[%clk 0:02:27.5]} 12. Rb1 {[%clk 0:02:35]} 12... Qc7 {[%clk
0:02:20.3]} 13. h3 {[%clk 0:02:29.8]} 13... O-O {[%clk 0:02:20]} 14. bxc6 {[%clk
0:02:24.1]} 14... bxc6 {[%clk 0:02:19.3]} 15. f4 {[%clk 0:02:13.4]} 15... Rfe8
{[%clk 0:02:09.2]} 16. Bf3 {[%clk 0:02:07]} 16... Nc5 {[%clk 0:01:54.9]} 17. Ne2
{[%clk 0:02:04.2]} 17... Nfd7 {[%clk 0:01:20.1]} 18. Nd4 {[%clk 0:01:55.5]}
18... g6 {[%clk 0:01:18.4]} 19. g4 {[%clk 0:01:52.3]} 19... fxg4 {[%clk
0:01:15.6]} 20. hxg4 {[%clk 0:01:51.9]} 20... Bf8 {[%clk 0:00:53.7]} 21. Kg2
{[%clk 0:01:48.7]} 21... Bg7 {[%clk 0:00:53.1]} 22. Rh1 {[%clk 0:01:46.3]} 22...
Rab8 {[%clk 0:00:51.7]} 23. Ba1 {[%clk 0:01:30.3]} 23... Rxb1 {[%clk 0:00:48.8]}
24. Qxb1 {[%clk 0:01:31.2]} 24... Rb8 {[%clk 0:00:48.3]} 25. Qe1 {[%clk
0:01:31.7]} 25... Nf8 {[%clk 0:00:32.1]} 26. g5 {[%clk 0:01:18.5]} 26... Qd6
{[%clk 0:00:30.6]} 27. Qh4 {[%clk 0:01:17.2]} 27... Ne4 {[%clk 0:00:20.4]} 28.
d3 {[%clk 0:01:06.7]} 28... Nd2 {[%clk 0:00:16.1]} 29. f5 {[%clk 0:01:05.1]}
29... Nxf3 {[%clk 0:00:14.5]} 30. Kxf3 {[%clk 0:01:03.8]} 30... c5 {[%clk
0:00:09.1]} 31. f6 {[%clk 0:01:00.7]} 31... cxd4 {[%clk 0:00:02.8]} 32. fxg7
{[%clk 0:01:00.3]} 32... Kxg7 {[%clk 0:00:02.5]} 33. Bxd4+ {[%clk 0:01:01]}
33... Kg8 {[%clk 0:00:02.7]} 34. Qh6 {[%clk 0:01:01.2]} 34... Ne6 {[%clk
0:00:02.9]} 35. Qxh7+ {[%clk 0:01:00.8]} 35... Kf8 {[%clk 0:00:03.5]} 36. Bf6
{[%clk 0:00:59.6]} 36... Ke8 {[%clk 0:00:03.2]} 37. Qg8+ {[%clk 0:00:58.8]}
37... Nf8 {[%clk 0:00:03.9]} 38. Rh7 {[%clk 0:00:57.6]} 38... Qe6 {[%clk
0:00:03.7]} 39. Rh8 {[%clk 0:00:50.5]} 39... Kd7 {[%clk 0:00:02.4]} 40. Qg7
{[%clk 0:00:49.7]} 40... Kc6 {[%clk 0:00:01.9]} 41. Rxf8 {[%clk 0:00:49.4]}
41... Rxf8 {[%clk 0:00:01.3]} 42. Qxf8 {[%clk 0:00:50.3]} 42... Qf5+ {[%clk
0:00:01.8]} 43. Ke2 {[%clk 0:00:50.4]} 43... Qg4+ {[%clk 0:00:01.9]} 44. Kd2
{[%clk 0:00:50.8]} 44... Qg2+ {[%clk 0:00:00.9]} 45. Kc3 {[%clk 0:00:51.1]}
45... Qe2 {[%clk 0:00:00.3]} 46. Qe8+ {[%clk 0:00:50.6]} 46... Kb7 {[%clk
0:00:00.3]} 47. Qd7+ {[%clk 0:00:50.7]} 47... Kb8 {[%clk 0:00:00.4]} 48. Qd6+
{[%clk 0:00:50.8]} 48... Kb7 {[%clk 0:00:00.6]} 49. Qxd5+ {[%clk 0:00:51.2]}
49... Ka7 {[%clk 0:00:00.5]} 50. Qc5+ {[%clk 0:00:51.1]} 50... Kb7 {[%clk
0:00:00.9]} 51. Qb5+ {[%clk 0:00:51.2]} 51... Kc8 {[%clk 0:00:00.5]} 52. Be5
{[%clk 0:00:49.9]} 1-0

[Event "Late-Titled-Tuesday-Blitz-April-30-2024"]
[Site "Chess.com"]
[Date "2024.04.30"]
[Round "9"]
[White "only_strong_moves"]
[Black "NLLO777"]
[Result "1-0"]
[WhiteElo "2734"]
[BlackElo "2566"]
[TimeControl "180+1"]
[EndTime "15:43:58 PDT"]
[Termination "only_strong_moves won on time"]

1. Nc3 {[%clk 0:02:50.5]} 1... c5 {[%clk 0:02:55.5]} 2. Nf3 {[%clk 0:02:50.2]}
2... Nf6 {[%clk 0:02:53.5]} 3. d4 {[%clk 0:02:50.7]} 3... cxd4 {[%clk
0:02:50.9]} 4. Nxd4 {[%clk 0:02:51.6]} 4... d5 {[%clk 0:02:46.9]} 5. Bf4 {[%clk
0:02:49.5]} 5... a6 {[%clk 0:02:32.7]} 6. e3 {[%clk 0:02:49.6]} 6... Qb6 {[%clk
0:02:31.2]} 7. Nb3 {[%clk 0:02:48.8]} 7... e6 {[%clk 0:02:24.9]} 8. a4 {[%clk
0:02:48.4]} 8... Nc6 {[%clk 0:02:25.1]} 9. Be2 {[%clk 0:02:45.1]} 9... Bb4
{[%clk 0:02:24.8]} 10. O-O {[%clk 0:02:42.6]} 10... O-O {[%clk 0:02:21.5]} 11.
Na2 {[%clk 0:02:38.9]} 11... Be7 {[%clk 0:02:19.5]} 12. Nc3 {[%clk 0:02:22.8]}
12... h6 {[%clk 0:02:18.5]} 13. Bg3 {[%clk 0:02:06.6]} 13... Rd8 {[%clk
0:02:16.3]} 14. a5 {[%clk 0:02:03.8]} 14... Qa7 {[%clk 0:02:13.6]} 15. Na4
{[%clk 0:02:03.7]} 15... e5 {[%clk 0:02:02.7]} 16. Nb6 {[%clk 0:02:01.8]} 16...
Rb8 {[%clk 0:02:03.3]} 17. Kh1 {[%clk 0:01:51.6]} 17... Be6 {[%clk 0:01:57.5]}
18. f4 {[%clk 0:01:51.6]} 18... Ne4 {[%clk 0:01:39.6]} 19. f5 {[%clk 0:01:44.6]}
19... Nxg3+ {[%clk 0:01:38.7]} 20. hxg3 {[%clk 0:01:45.5]} 20... Bc8 {[%clk
0:01:36.2]} 21. Nxd5 {[%clk 0:01:40.6]} 21... Bg5 {[%clk 0:01:33.8]} 22. e4
{[%clk 0:01:32.9]} 22... Bd7 {[%clk 0:01:28.7]} 23. c3 {[%clk 0:01:26.5]} 23...
Be8 {[%clk 0:01:14.8]} 24. Qe1 {[%clk 0:01:26.1]} 24... Ne7 {[%clk 0:01:09.3]}
25. c4 {[%clk 0:01:20]} 25... Nc6 {[%clk 0:01:05.2]} 26. Qf2 {[%clk 0:01:08]}
26... Qxf2 {[%clk 0:00:59.6]} 27. Rxf2 {[%clk 0:01:08.9]} 27... Rbc8 {[%clk
0:00:58.7]} 28. Bf1 {[%clk 0:01:00.7]} 28... Kf8 {[%clk 0:00:52.8]} 29. Rd1
{[%clk 0:00:59]} 29... Nb8 {[%clk 0:00:34.9]} 30. Rc2 {[%clk 0:00:51]} 30... Ba4
{[%clk 0:00:27]} 31. Rc3 {[%clk 0:00:36.8]} 31... Nc6 {[%clk 0:00:26.9]} 32. Ra1
{[%clk 0:00:34.4]} 32... Bxb3 {[%clk 0:00:22.5]} 33. Rxb3 {[%clk 0:00:35.3]}
33... Rb8 {[%clk 0:00:13.1]} 34. Rb6 {[%clk 0:00:35.7]} 34... Bd2 {[%clk
0:00:08.7]} 35. b4 {[%clk 0:00:33.6]} 35... Ke8 {[%clk 0:00:05.3]} 36. Ra2
{[%clk 0:00:32.3]} 36... Bg5 {[%clk 0:00:05]} 37. b5 {[%clk 0:00:31.2]} 37...
axb5 {[%clk 0:00:04.2]} 38. cxb5 {[%clk 0:00:32.1]} 38... Nd4 {[%clk 0:00:05.1]}
39. a6 {[%clk 0:00:30.1]} 39... bxa6 {[%clk 0:00:05.7]} 40. Rxb8 {[%clk
0:00:30.4]} 40... Rxb8 {[%clk 0:00:06.5]} 41. bxa6 {[%clk 0:00:28.6]} 41... Ra8
{[%clk 0:00:03]} 42. Nc7+ {[%clk 0:00:28.2]} 42... Kd7 {[%clk 0:00:02.7]} 43.
Nxa8 {[%clk 0:00:29.1]} 1-0

[Event "Late-Titled-Tuesday-Blitz-April-30-2024"]
[Site "Chess.com"]
[Date "2024.04.30"]
[Round "9"]
[White "Supelyel"]
[Black "ATM622"]
[Result "1-0"]
[WhiteElo "2406"]
[BlackElo "2492"]
[TimeControl "180+1"]
[EndTime "15:43:59 PDT"]
[Termination "Supelyel won by checkmate"]

1. c4 {[%clk 0:03:00.9]} 1... e5 {[%clk 0:02:53]} 2. Nc3 {[%clk 0:02:57.5]} 2...
Nf6 {[%clk 0:02:51.3]} 3. g3 {[%clk 0:02:57.4]} 3... c6 {[%clk 0:02:46.6]} 4.
Nf3 {[%clk 0:02:54]} 4... e4 {[%clk 0:02:45.6]} 5. Nd4 {[%clk 0:02:53.8]} 5...
d5 {[%clk 0:02:43.4]} 6. cxd5 {[%clk 0:02:53.5]} 6... cxd5 {[%clk 0:02:41.2]} 7.
Bg2 {[%clk 0:02:53.8]} 7... Nc6 {[%clk 0:02:39.4]} 8. Nxc6 {[%clk 0:02:53.1]}
8... bxc6 {[%clk 0:02:40.3]} 9. d3 {[%clk 0:02:53.4]} 9... Bb4 {[%clk
0:02:34.7]} 10. O-O {[%clk 0:02:42.8]} 10... exd3 {[%clk 0:02:30.3]} 11. Qa4
{[%clk 0:02:06.4]} 11... Bxc3 {[%clk 0:02:08.3]} 12. Qxc6+ {[%clk 0:02:01.3]}
12... Bd7 {[%clk 0:02:08.3]} 13. Qxc3 {[%clk 0:02:00.9]} 13... dxe2 {[%clk
0:02:08]} 14. Re1 {[%clk 0:02:00.8]} 14... O-O {[%clk 0:02:07.2]} 15. Rxe2
{[%clk 0:02:00.8]} 15... Rc8 {[%clk 0:02:06.7]} 16. Qd4 {[%clk 0:01:55.5]} 16...
Bg4 {[%clk 0:01:43.9]} 17. Re5 {[%clk 0:01:27.1]} 17... Rc4 {[%clk 0:01:38.4]}
18. Qxa7 {[%clk 0:01:18.6]} 18... Re8 {[%clk 0:01:18.5]} 19. Rxe8+ {[%clk
0:01:09.2]} 19... Qxe8 {[%clk 0:01:18.3]} 20. Be3 {[%clk 0:01:09.2]} 20... Rc2
{[%clk 0:01:11.3]} 21. Qb6 {[%clk 0:00:54.4]} 21... h6 {[%clk 0:01:03.1]} 22. a4
{[%clk 0:00:53.2]} 22... Rc6 {[%clk 0:00:48.1]} 23. Qb3 {[%clk 0:00:44.8]} 23...
Be6 {[%clk 0:00:35]} 24. Bd4 {[%clk 0:00:44.1]} 24... Ne4 {[%clk 0:00:34.3]} 25.
Qe3 {[%clk 0:00:19.9]} 25... Qc8 {[%clk 0:00:24.1]} 26. a5 {[%clk 0:00:18.9]}
26... Bf5 {[%clk 0:00:14.9]} 27. Bf1 {[%clk 0:00:18.5]} 27... Ng5 {[%clk
0:00:11.4]} 28. h4 {[%clk 0:00:17.3]} 28... Ne4 {[%clk 0:00:09.2]} 29. a6 {[%clk
0:00:17.3]} 29... g5 {[%clk 0:00:05.8]} 30. a7 {[%clk 0:00:16.9]} 30... Qa8
{[%clk 0:00:06]} 31. hxg5 {[%clk 0:00:16.8]} 31... hxg5 {[%clk 0:00:05.9]} 32.
f3 {[%clk 0:00:17]} 32... Nd6 {[%clk 0:00:02.6]} 33. Qxg5+ {[%clk 0:00:16.7]}
33... Bg6 {[%clk 0:00:02.8]} 34. Qh6 {[%clk 0:00:14.8]} 34... f6 {[%clk
0:00:02.5]} 35. Bxf6 {[%clk 0:00:14.5]} 35... Kf7 {[%clk 0:00:01.8]} 36. Qg7+
{[%clk 0:00:13.5]} 36... Ke6 {[%clk 0:00:01.5]} 37. Bh3+ {[%clk 0:00:13.6]}
37... Nf5 {[%clk 0:00:01.1]} 38. Qe7# {[%clk 0:00:13.7]} 1-0

[Event "Late-Titled-Tuesday-Blitz-April-30-2024"]
[Site "Chess.com"]
[Date "2024.04.30"]
[Round "9"]
[White "bobo_panda"]
[Black "chess_sharparchitect"]
[Result "1-0"]
[WhiteElo "2431"]
[BlackElo "2265"]
[TimeControl "180+1"]
[EndTime "15:43:59 PDT"]
[Termination "bobo_panda won on time"]

1. e4 {[%clk 0:03:00.9]} 1... c5 {[%clk 0:02:59.1]} 2. Nf3 {[%clk 0:03:01]} 2...
d6 {[%clk 0:02:55]} 3. d4 {[%clk 0:03:01.4]} 3... cxd4 {[%clk 0:02:55.5]} 4.
Nxd4 {[%clk 0:03:02.3]} 4... Nf6 {[%clk 0:02:55.8]} 5. Nc3 {[%clk 0:03:02.9]}
5... a6 {[%clk 0:02:56.3]} 6. h3 {[%clk 0:03:02.3]} 6... e5 {[%clk 0:02:55.8]}
7. Nde2 {[%clk 0:03:02.2]} 7... h5 {[%clk 0:02:42.8]} 8. Bg5 {[%clk 0:03:02.5]}
8... Nbd7 {[%clk 0:02:39.4]} 9. Ng3 {[%clk 0:02:59.5]} 9... g6 {[%clk
0:02:37.3]} 10. Bc4 {[%clk 0:02:58.3]} 10... Be7 {[%clk 0:02:36.5]} 11. O-O
{[%clk 0:02:56.2]} 11... b5 {[%clk 0:02:24.2]} 12. Bb3 {[%clk 0:02:55.1]} 12...
Bb7 {[%clk 0:02:21.8]} 13. h4 {[%clk 0:02:47.5]} 13... b4 {[%clk 0:02:11.3]} 14.
Nd5 {[%clk 0:02:42.2]} 14... Nxd5 {[%clk 0:02:07.1]} 15. Bxd5 {[%clk 0:02:43.1]}
15... Bxd5 {[%clk 0:02:03.7]} 16. Qxd5 {[%clk 0:02:42]} 16... Bxg5 {[%clk
0:01:54.5]} 17. hxg5 {[%clk 0:02:41.1]} 17... h4 {[%clk 0:01:38.3]} 18. Ne2
{[%clk 0:02:37.8]} 18... O-O {[%clk 0:01:26]} 19. Qxd6 {[%clk 0:02:36.6]} 19...
Ra7 {[%clk 0:01:17.1]} 20. Rad1 {[%clk 0:02:35.5]} 20... Qxg5 {[%clk 0:01:15.5]}
21. f4 {[%clk 0:02:33.1]} 21... Qg4 {[%clk 0:01:10.9]} 22. Qd3 {[%clk
0:01:49.9]} 22... Nc5 {[%clk 0:01:04.8]} 23. Qf3 {[%clk 0:01:49.7]} 23... Qxf3
{[%clk 0:00:49.7]} 24. gxf3 {[%clk 0:01:50.6]} 24... exf4 {[%clk 0:00:47.3]} 25.
Nxf4 {[%clk 0:01:51.5]} 25... g5 {[%clk 0:00:46.1]} 26. Nd5 {[%clk 0:01:51.7]}
26... Kg7 {[%clk 0:00:44]} 27. Kg2 {[%clk 0:01:51.7]} 27... a5 {[%clk
0:00:42.2]} 28. Kh3 {[%clk 0:01:51.3]} 28... Ne6 {[%clk 0:00:38.1]} 29. Kg4
{[%clk 0:01:50.4]} 29... Kg6 {[%clk 0:00:32.4]} 30. f4 {[%clk 0:01:45.8]} 30...
f5+ {[%clk 0:00:26.9]} 31. exf5+ {[%clk 0:01:45.5]} 31... Rxf5 {[%clk
0:00:26.9]} 32. Rfe1 {[%clk 0:01:36.1]} 32... Nxf4 {[%clk 0:00:24.1]} 33. Ne7+
{[%clk 0:01:35.8]} 33... Rxe7 {[%clk 0:00:20.5]} 34. Rxe7 {[%clk 0:01:36.7]}
34... Nd5 {[%clk 0:00:17.7]} 35. Re6+ {[%clk 0:01:35.3]} 35... Nf6+ {[%clk
0:00:17.6]} 36. Kh3 {[%clk 0:01:33.4]} 36... Rf3+ {[%clk 0:00:14.6]} 37. Kg2
{[%clk 0:01:33.1]} 37... g4 {[%clk 0:00:14.1]} 38. Rd4 {[%clk 0:01:06.5]} 38...
h3+ {[%clk 0:00:08.7]} 39. Kh2 {[%clk 0:01:06.8]} 39... Kg5 {[%clk 0:00:08.5]}
40. Re5+ {[%clk 0:01:05.4]} 40... Rf5 {[%clk 0:00:08.6]} 41. Rxf5+ {[%clk
0:01:03.1]} 41... Kxf5 {[%clk 0:00:09.5]} 42. a3 {[%clk 0:00:57.2]} 42... bxa3
{[%clk 0:00:09.2]} 43. bxa3 {[%clk 0:00:57.7]} 43... Ne4 {[%clk 0:00:09]} 44.
Ra4 {[%clk 0:00:57.3]} 44... Kf4 {[%clk 0:00:05.8]} 45. Rxa5 {[%clk 0:00:57.7]}
45... g3+ {[%clk 0:00:03]} 46. Kxh3 {[%clk 0:00:57.3]} 46... Nf2+ {[%clk
0:00:02]} 47. Kg2 {[%clk 0:00:57.5]} 47... Ng4 {[%clk 0:00:02.3]} 48. Ra8 {[%clk
0:00:55.4]} 48... Ne3+ {[%clk 0:00:02]} 49. Kg1 {[%clk 0:00:55.8]} 49... Nxc2
{[%clk 0:00:02.7]} 50. a4 {[%clk 0:00:56.2]} 50... Nb4 {[%clk 0:00:02.8]} 51. a5
{[%clk 0:00:56]} 51... Kf3 {[%clk 0:00:02.1]} 52. Rf8+ {[%clk 0:00:55.2]} 52...
Kg4 {[%clk 0:00:01.5]} 53. Rb8 {[%clk 0:00:56.1]} 1-0

[Event "Late-Titled-Tuesday-Blitz-April-30-2024"]
[Site "Chess.com"]
[Date "2024.04.30"]
[Round "9"]
[White "Boninknights"]
[Black "vladgoncharov"]
[Result "1-0"]
[WhiteElo "2395"]
[BlackElo "2593"]
[TimeControl "180+1"]
[EndTime "15:44:03 PDT"]
[Termination "Boninknights won on time"]

1. d4 {[%clk 0:02:57.4]} 1... Nf6 {[%clk 0:02:50.9]} 2. Nf3 {[%clk 0:02:56]}
2... e6 {[%clk 0:02:48.2]} 3. c4 {[%clk 0:02:55.6]} 3... Bb4+ {[%clk 0:02:47.1]}
4. Bd2 {[%clk 0:02:54.3]} 4... Be7 {[%clk 0:02:46.9]} 5. Qc2 {[%clk 0:02:51.4]}
5... c5 {[%clk 0:02:45.3]} 6. e4 {[%clk 0:02:48.9]} 6... cxd4 {[%clk 0:02:44.1]}
7. Nxd4 {[%clk 0:02:47.6]} 7... d6 {[%clk 0:02:41.6]} 8. Bd3 {[%clk 0:02:43.6]}
8... O-O {[%clk 0:02:38.6]} 9. O-O {[%clk 0:02:41.2]} 9... Nc6 {[%clk
0:02:38.6]} 10. Nxc6 {[%clk 0:02:39.5]} 10... bxc6 {[%clk 0:02:38.1]} 11. Nc3
{[%clk 0:02:35.1]} 11... e5 {[%clk 0:02:37.7]} 12. f4 {[%clk 0:02:30.9]} 12...
exf4 {[%clk 0:02:33]} 13. Bxf4 {[%clk 0:02:28.6]} 13... Be6 {[%clk 0:02:32.5]}
14. Rad1 {[%clk 0:02:23.4]} 14... g6 {[%clk 0:02:19.5]} 15. c5 {[%clk 0:02:17]}
15... d5 {[%clk 0:02:13.8]} 16. b4 {[%clk 0:02:07.4]} 16... a5 {[%clk
0:02:09.1]} 17. a3 {[%clk 0:02:06.2]} 17... axb4 {[%clk 0:02:08.6]} 18. axb4
{[%clk 0:02:05.1]} 18... dxe4 {[%clk 0:01:52.9]} 19. Bxe4 {[%clk 0:01:54.4]}
19... Qc8 {[%clk 0:01:50.5]} 20. Bf3 {[%clk 0:01:50.6]} 20... Qa6 {[%clk
0:01:13.2]} 21. Be5 {[%clk 0:01:38]} 21... Nd7 {[%clk 0:01:05.9]} 22. Bd6 {[%clk
0:01:32.9]} 22... Bxd6 {[%clk 0:00:50.4]} 23. Rxd6 {[%clk 0:01:30.5]} 23... Rac8
{[%clk 0:00:50.3]} 24. Bxc6 {[%clk 0:01:19.8]} 24... Rxc6 {[%clk 0:00:45.6]} 25.
b5 {[%clk 0:01:19.6]} 25... Rxd6 {[%clk 0:00:25.1]} 26. bxa6 {[%clk 0:01:18.3]}
26... Rxa6 {[%clk 0:00:26]} 27. Ne4 {[%clk 0:01:13.2]} 27... Rc6 {[%clk
0:00:25.8]} 28. h3 {[%clk 0:01:01.8]} 28... Rfc8 {[%clk 0:00:25]} 29. Qb2 {[%clk
0:00:56.5]} 29... Bf5 {[%clk 0:00:15.5]} 30. Nd6 {[%clk 0:00:53.3]} 30... Rb8
{[%clk 0:00:14.8]} 31. Qd4 {[%clk 0:00:46.8]} 31... Nxc5 {[%clk 0:00:09.2]} 32.
Rxf5 {[%clk 0:00:41.1]} 32... gxf5 {[%clk 0:00:08.7]} 33. Nxf5 {[%clk
0:00:40.4]} 33... Ne6 {[%clk 0:00:07.7]} 34. Qf6 {[%clk 0:00:34.8]} 34... Rb1+
{[%clk 0:00:06]} 35. Kh2 {[%clk 0:00:33.7]} 35... Rc7 {[%clk 0:00:05.3]} 36.
Nh6+ {[%clk 0:00:25]} 36... Kf8 {[%clk 0:00:05.1]} 37. Qh8+ {[%clk 0:00:24.1]}
37... Ke7 {[%clk 0:00:05]} 38. Qxh7 {[%clk 0:00:24.3]} 38... Rf1 {[%clk
0:00:04.4]} 39. Qe4 {[%clk 0:00:22.6]} 39... Rf6 {[%clk 0:00:02.4]} 40. Ng8+
{[%clk 0:00:21.2]} 1-0

[Event "Late-Titled-Tuesday-Blitz-April-30-2024"]
[Site "Chess.com"]
[Date "2024.04.30"]
[Round "9"]
[White "Binary010"]
[Black "ozates"]
[Result "0-1"]
[WhiteElo "2887"]
[BlackElo "2630"]
[TimeControl "180+1"]
[EndTime "15:44:07 PDT"]
[Termination "ozates won on time"]

1. d4 {[%clk 0:03:00.9]} 1... Nf6 {[%clk 0:02:58.2]} 2. c4 {[%clk 0:03:01]} 2...
e6 {[%clk 0:02:57.1]} 3. Nf3 {[%clk 0:03:00.9]} 3... d5 {[%clk 0:02:56]} 4. Nc3
{[%clk 0:03:00.7]} 4... c6 {[%clk 0:02:56.3]} 5. Qd3 {[%clk 0:02:51.3]} 5...
dxc4 {[%clk 0:02:52.6]} 6. Qxc4 {[%clk 0:02:52.2]} 6... b5 {[%clk 0:02:53]} 7.
Qd3 {[%clk 0:02:52.6]} 7... Bb7 {[%clk 0:02:53.3]} 8. a4 {[%clk 0:02:38.4]} 8...
a6 {[%clk 0:02:52.3]} 9. g3 {[%clk 0:02:33.3]} 9... Nbd7 {[%clk 0:02:07.4]} 10.
Bg2 {[%clk 0:02:31.9]} 10... b4 {[%clk 0:02:06.6]} 11. Ne4 {[%clk 0:02:03.8]}
11... c5 {[%clk 0:02:06.7]} 12. Nxf6+ {[%clk 0:01:32.4]} 12... Qxf6 {[%clk
0:02:00]} 13. Bg5 {[%clk 0:01:16.9]} 13... Qg6 {[%clk 0:01:59.5]} 14. Qxg6
{[%clk 0:01:16.9]} 14... hxg6 {[%clk 0:02:00.3]} 15. Be3 {[%clk 0:00:53.4]}
15... c4 {[%clk 0:01:55.7]} 16. Rc1 {[%clk 0:00:51.2]} 16... Bd5 {[%clk
0:01:49.3]} 17. O-O {[%clk 0:00:50.8]} 17... a5 {[%clk 0:01:48.9]} 18. Nd2
{[%clk 0:00:49.5]} 18... Nb6 {[%clk 0:01:47]} 19. Bf4 {[%clk 0:00:45.5]} 19...
Rc8 {[%clk 0:01:41.5]} 20. e4 {[%clk 0:00:42.2]} 20... Bb7 {[%clk 0:01:34.2]}
21. Be3 {[%clk 0:00:39.6]} 21... Ba6 {[%clk 0:01:20]} 22. d5 {[%clk 0:00:17.3]}
22... Nxa4 {[%clk 0:01:19.6]} 23. Ra1 {[%clk 0:00:17.3]} 23... c3 {[%clk
0:01:10.1]} 24. Rxa4 {[%clk 0:00:14.8]} 24... cxd2 {[%clk 0:01:02.8]} 25. Rd1
{[%clk 0:00:12.1]} 25... Be2 {[%clk 0:00:58.5]} 26. Raa1 {[%clk 0:00:09.6]}
26... Bxd1 {[%clk 0:00:58.3]} 27. Rxd1 {[%clk 0:00:09.9]} 27... Rc1 {[%clk
0:00:54.7]} 28. Rxc1 {[%clk 0:00:10]} 28... dxc1=Q+ {[%clk 0:00:55.6]} 29. Bxc1
{[%clk 0:00:10.3]} 29... exd5 {[%clk 0:00:55.5]} 30. exd5 {[%clk 0:00:10.5]}
30... Bc5 {[%clk 0:00:48.2]} 31. Bf1 {[%clk 0:00:10.5]} 31... Kd7 {[%clk
0:00:48.1]} 32. Bf4 {[%clk 0:00:10.5]} 32... Bd6 {[%clk 0:00:43.4]} 33. Bb5+
{[%clk 0:00:10.1]} 33... Kc7 {[%clk 0:00:43.9]} 34. Be3 {[%clk 0:00:10]} 34...
Rb8 {[%clk 0:00:35.7]} 35. Bc6 {[%clk 0:00:08.6]} 35... b3 {[%clk 0:00:24.1]}
36. Bd2 {[%clk 0:00:02.6]} 36... Be5 {[%clk 0:00:13.5]} 37. Bxa5+ {[%clk
0:00:02.6]} 37... Kd6 {[%clk 0:00:14.1]} 38. Bd2 {[%clk 0:00:01.3]} 38... Bxb2
{[%clk 0:00:13.2]} 39. f4 {[%clk 0:00:01.9]} 39... Bd4+ {[%clk 0:00:13.1]} 0-1